fUSD/lending_fUSD_20250304
["ID","MTS","AMOUNT","RATE_DAILY","PERIOD"]
[355321813,1741065046288,-535.61307096,0.00012692,2]
[355321815,1741065046297,-500.0,0.00012692,2]
[355321817,1741065046306,-500.0,0.00012692,2]
[355321819,1741065046317,-500.0,0.00012692,2]
[355321821,1741065046326,-500.0,0.00012692,2]
[355321823,1741065046335,-500.0,0.00012692,2]
[355321825,1741065046344,-1051.57,0.00012692,2]
[355321827,1741065046354,-500.0,0.00012692,2]
[355321829,1741065046363,-783.76,0.00012692,2]
[355321831,1741065046372,-1029.06,0.00012692,2]
[355321833,1741065046381,-500.0,0.00012692,2]
[355321835,1741065046391,-500.0,0.00012692,2]
[355321837,1741065046400,-690.78,0.00012692,2]
[355321839,1741065046409,-500.0,0.00012692,2]
[355321841,1741065046418,-500.0,0.00012692,2]
[355321843,1741065046428,-500.0,0.00012692,2]
[355321845,1741065046437,-980.47,0.00012692,2]
[355321847,1741065046446,-500.0,0.00012692,2]
[355321849,1741065046455,-543.03688606,0.00012692,2]
[355321851,1741065046465,-500.0,0.00012692,2]
[355321853,1741065046474,-552.77721901,0.00012692,2]
[355321855,1741065046483,-500.0,0.00012692,2]
[355321857,1741065046493,-500.0,0.00012692,2]
[355321859,1741065046502,-500.0,0.00012692,2]
[355321861,1741065046513,-279.96119918,0.00012692,2]
[355321863,1741065046524,-1285.27,0.00012692,2]
[355321865,1741065046539,-500.0,0.00012692,2]
[355321866,1741065046553,-500.0,0.00012692,2]
[355321868,1741065046563,-733.54,0.00012692,2]
[355321870,1741065046572,-1273.22,0.00012692,2]
[355321872,1741065046582,-500.0,0.00012692,2]
[355321874,1741065046592,-500.0,0.00012692,2]
[355321876,1741065046601,-500.0,0.00012692,2]
[355321878,1741065046611,-506.41475833,0.00012692,2]
[355321880,1741065046621,-591.19,0.00012692,2]
[355321882,1741065046631,-630.98093982,0.00012692,2]
[355321884,1741065046641,-500.0,0.00012692,2]
[355321886,1741065046650,-500.0,0.00012692,2]
[355321888,1741065046659,-500.0,0.00012692,2]
[355321890,1741065046669,-500.0,0.00012692,2]
[355321892,1741065046679,-692.21,0.00012692,2]
[355321894,1741065046690,-500.0,0.00012692,2]
[355321896,1741065046700,-1224.4,0.00012692,2]
[355321898,1741065046709,-502.87927712,0.00012692,2]
[355321900,1741065046719,-501.53652617,0.00012692,2]
[355321902,1741065046728,-500.0,0.00012692,2]
[355321904,1741065046738,-500.0,0.00012692,2]
[355321906,1741065046747,-500.0,0.00012692,2]
[355321908,1741065046757,-500.0,0.00012692,2]
[355321910,1741065046767,-500.0,0.00012692,2]
[355321912,1741065046776,-764.52,0.00012692,2]
[355321914,1741065046787,-500.0,0.00012692,2]
[355321915,1741065046796,-1943.42,0.00012692,2]
[355321917,1741065046806,-505.9031886,0.00012692,2]
[355321919,1741065046816,-500.0,0.00012692,2]
[355321921,1741065046825,-834.21,0.00012692,2]
[355321923,1741065046835,-500.0,0.00012692,2]
[355321925,1741065046845,-1611.96,0.00012692,2]
[355321927,1741065046855,-2083.03,0.00012692,2]
[355321929,1741065046865,-500.0,0.00012692,2]
[355321931,1741065046874,-723.39,0.00012692,2]
[355321933,1741065046884,-500.0,0.00012692,2]
[355321935,1741065046894,-500.0,0.00012692,2]
[355321937,1741065046904,-500.0,0.00012692,2]
[355321939,1741065046913,-1707.78,0.00012692,2]
[355321941,1741065046923,-500.0,0.00012692,2]
[355321943,1741065046933,-500.0,0.00012692,2]
[355321945,1741065046943,-789.75,0.00012692,2]
[355321947,1741065046953,-500.0,0.00012692,2]
[355321949,1741065046962,-500.0,0.00012692,2]
[355321951,1741065046972,-500.0,0.00012692,2]
[355321953,1741065046982,-500.0,0.00012692,2]
[355321955,1741065046992,-500.0,0.00012692,2]
[355321957,1741065047001,-500.0,0.00012692,2]
[355321959,1741065047013,-500.0,0.00012692,2]
[355321961,1741065047023,-500.0,0.00012692,2]
[355321963,1741065047032,-500.0,0.00012692,2]
[355321965,1741065047042,-2148.43,0.00012692,2]
[355321967,1741065047052,-2925.27,0.00012692,2]
[355321969,1741065047062,-500.0,0.00012692,2]
[355321971,1741065047075,-500.0,0.00012692,2]
[355321974,1741065047096,-500.0,0.00012692,2]
[355321977,1741065047112,-501.36033659,0.00012692,2]
[355321980,1741065047133,-500.0,0.00012692,2]
[355321983,1741065047150,-500.0,0.00012692,2]
[355321986,1741065047167,-1445.29,0.00012692,2]
[355321989,1741065047185,-500.0,0.00012692,2]
[355321992,1741065047204,-500.0,0.00012692,2]
[355321995,1741065047223,-500.0,0.00012692,2]
[355321998,1741065047242,-500.0,0.00012692,2]
[355322000,1741065047263,-500.0,0.00012692,2]
[355322003,1741065047280,-500.0,0.00012692,2]
[355322006,1741065047294,-500.0,0.00012692,2]
[355322009,1741065047314,-509.17486408,0.00012692,2]
[355322011,1741065047327,-1557.07,0.00012692,2]
[355322014,1741065047345,-500.0,0.00012692,2]
[355322016,1741065047359,-1857.57,0.00012692,2]
[355322019,1741065047375,-500.0,0.00012692,2]
[355322022,1741065047391,-2641.7,0.00012692,2]
[355322024,1741065047407,-500.0,0.00012692,2]
[355322027,1741065047423,-500.0,0.00012692,2]
[355322030,1741065047443,-500.0,0.00012692,2]
[355322033,1741065047458,-500.0,0.00012692,2]
[355322035,1741065047473,-505.25434061,0.00012692,2]
[355322038,1741065047489,-500.0,0.00012692,2]
[355322041,1741065047505,-500.0,0.00012692,2]
[355322043,1741065047524,-500.0,0.00012692,2]
[355322046,1741065047542,-943.07,0.00012692,2]
[355322049,1741065047559,-4816.18,0.00012692,2]
[355322051,1741065047576,-500.0,0.00012692,2]
[355322054,1741065047593,-503.18634511,0.00012692,2]
[355322056,1741065047608,-500.0,0.00012692,2]
[355322059,1741065047624,-500.0,0.00012692,2]
[355322062,1741065047641,-1544.84,0.00012692,2]
[355322064,1741065047657,-500.0,0.00012692,2]
[355322067,1741065047673,-500.0,0.00012692,2]
[355322070,1741065047690,-500.0,0.00012692,2]
[355322073,1741065047707,-502.19449505,0.00012692,2]
[355322075,1741065047722,-504.96204676,0.00012692,2]
[355322078,1741065047739,-500.0,0.00012692,2]
[355322080,1741065047754,-824.13,0.00012692,2]
[355322083,1741065047771,-500.0,0.00012692,2]
[355322086,1741065047788,-982.34,0.00012692,2]
[355322088,1741065047803,-1368.56,0.00012692,2]
[355322091,1741065047820,-500.0,0.00012692,2]
[355322094,1741065047837,-500.0,0.00012692,2]
[355322096,1741065047854,-1259.35,0.00012692,2]
[355322099,1741065047870,-502.34872343,0.00012692,2]
[355322102,1741065047887,-500.0,0.00012692,2]
[355322104,1741065047904,-500.0,0.00012692,2]
[355322107,1741065047920,-3242.46,0.00012692,2]
[355322110,1741065047936,-500.0,0.00012692,2]
[355322112,1741065047952,-500.0,0.00012692,2]
[355322115,1741065047968,-869.69,0.00012692,2]
[355322118,1741065047985,-500.0,0.00012692,2]
[355322120,1741065048001,-527.05,0.00012692,2]
[355322123,1741065048017,-500.0,0.00012692,2]
[355322126,1741065048034,-500.0,0.00012692,2]
[355322128,1741065048050,-500.0,0.00012692,2]
[355322131,1741065048067,-500.0,0.00012692,2]
[355322133,1741065048083,-354.01402111,0.00012692,2]
[355322136,1741065048100,-2931.59,0.00012692,2]
[355322139,1741065048118,-500.0,0.00012692,2]
[355322141,1741065048136,-154.42652364,0.00012692,2]
[355322144,1741065048152,-500.0,0.00012692,2]
[355322147,1741065048170,-5306.55,0.00012692,2]
[355322149,1741065048186,-500.0,0.00012692,2]
[355322152,1741065048203,-500.0,0.00012692,2]
[355322155,1741065048221,-885.96,0.00012692,2]
[355322158,1741065048238,-545.16331309,0.00012692,2]
[355322160,1741065048253,-25045.39,0.00012692,2]
[355322163,1741065048273,-500.0,0.00012692,2]
[355322166,1741065048289,-500.0,0.00012692,2]
[355322168,1741065048305,-741.53,0.00012692,2]
[355322171,1741065048322,-501.01499409,0.00012692,2]
[355322173,1741065048340,-500.0,0.00012692,2]
[355322174,1741065048358,-1465.88,0.00012692,2]
[355322175,1741065048376,-223.51733779,0.00012692,2]
[355322176,1741065048393,-1504.26,0.00012692,2]
[355322179,1741065048407,-2684.72,0.00012692,2]
[355322181,1741065048423,-500.0,0.00012692,2]
[355322184,1741065048439,-500.0,0.00012692,2]
[355322186,1741065048454,-500.0,0.00012692,2]
[355322188,1741065048464,-500.0,0.00012692,2]
[355322190,1741065048474,-159.21392179,0.00012692,2]
[355322192,1741065048485,-500.0,0.00012692,2]
[355322194,1741065048495,-1399.13,0.00012692,2]
[355322196,1741065048504,-500.0,0.00012692,2]
[355322198,1741065048515,-508.81705675,0.00012692,2]
[355322200,1741065048526,-2072.8,0.00012692,2]
[355322202,1741065048538,-500.0,0.00012692,2]
[355322204,1741065048547,-500.0,0.00012692,2]
[355322206,1741065048557,-500.0,0.00012692,2]
[355322242,1741065048915,-1830.96,0.00012692,2]
[355322248,1741065048962,-1097.26,0.00012692,2]
[355322250,1741065048973,-502.52406117,0.00012692,2]
[355322252,1741065048983,-1764.15,0.00012692,2]
[355322254,1741065048993,-3518.14,0.00012692,2]
[355322256,1741065049003,-807.31,0.00012692,2]
[355322258,1741065049013,-500.0,0.00012692,2]
[355322260,1741065049023,-500.0,0.00012692,2]
[355322262,1741065049033,-500.0,0.00012692,2]
[355322264,1741065049043,-500.0,0.00012692,2]
[355322265,1741065049052,-500.0,0.00012692,2]
[355322267,1741065049062,-500.0,0.00012692,2]
[355322269,1741065049072,-500.0,0.00012692,2]
[355322271,1741065049082,-500.0,0.00012692,2]
[355322273,1741065049091,-2345.83,0.00012692,2]
[355322275,1741065049101,-1377.86,0.00012692,2]
[355322278,1741065049111,-500.0,0.00012692,2]
[355322279,1741065049122,-500.0,0.00012692,2]
[355322282,1741065049132,-500.0,0.00012692,2]
[355322284,1741065049141,-295.49621497,0.00012692,2]
[355322286,1741065049151,-500.0,0.00012692,2]
[355322288,1741065049160,-500.0,0.00012692,2]
[355322290,1741065049170,-500.0,0.00012692,2]
[355322291,1741065049180,-500.0,0.00012692,2]
[355322293,1741065049190,-500.0,0.00012692,2]
[355322295,1741065049200,-593.63,0.00012692,2]
[355322297,1741065049209,-500.0,0.00012692,2]
[355322300,1741065049219,-500.0,0.00012692,2]
[355322302,1741065049229,-500.0,0.00012692,2]
[355322304,1741065049239,-500.0,0.00012692,2]
[355322306,1741065049249,-553.21,0.00012692,2]
[355322308,1741065049258,-2119.63,0.00012692,2]
[355322310,1741065049270,-4492.49,0.00012692,2]
[355322312,1741065049280,-500.0,0.00012692,2]
[355322314,1741065049289,-1762.08,0.00012692,2]
[355322316,1741065049299,-500.0,0.00012692,2]
[355322318,1741065049309,-500.0,0.00012692,2]
[355322320,1741065049318,-500.0,0.00012692,2]
[355322322,1741065049328,-500.0,0.00012692,2]
[355322323,1741065049338,-542.91,0.00012692,2]
[355322326,1741065049348,-2891.95,0.00012692,2]
[355322327,1741065049359,-500.0,0.00012692,2]
[355322329,1741065049369,-3952.7,0.00012692,2]
[355322331,1741065049379,-2811.59,0.00012692,2]
[355322333,1741065049389,-500.0,0.00012692,2]
[355322335,1741065049399,-500.0,0.00012692,2]
[355322337,1741065049409,-1347.47,0.00012692,2]
[355322339,1741065049419,-29551.96,0.00012692,2]
[355322341,1741065049429,-500.0,0.00012692,2]
[355322343,1741065049439,-543.65,0.00012692,2]
[355322345,1741065049448,-501.4540269,0.00012692,2]
[355322347,1741065049459,-500.0,0.00012692,2]
[355322349,1741065049469,-981.92,0.00012692,2]
[355322351,1741065049479,-500.0,0.00012692,2]
[355322353,1741065049488,-500.0,0.00012692,2]
[355322355,1741065049498,-2963.97,0.00012692,2]
[355322357,1741065049508,-780.51,0.00012692,2]
[355322359,1741065049521,-1201.37,0.00012692,2]
[355322361,1741065049533,-500.0,0.00012692,2]
[355322363,1741065049543,-500.0,0.00012692,2]
[355322365,1741065049553,-500.0,0.00012692,2]
[355322367,1741065049563,-9711.35,0.00012692,2]
[355322369,1741065049574,-500.0,0.00012692,2]
[355322371,1741065049584,-3204.15,0.00012692,2]
[355322373,1741065049594,-500.0,0.00012692,2]
[355322375,1741065049604,-500.0,0.00012692,2]
[355322377,1741065049616,-3548.9,0.00012692,2]
[355322379,1741065049626,-500.0,0.00012692,2]
[355322381,1741065049636,-500.0,0.00012692,2]
[355322383,1741065049646,-500.0,0.00012692,2]
[355322385,1741065049656,-500.0,0.00012692,2]
[355322387,1741065049665,-500.0,0.00012692,2]
[355322389,1741065049675,-620.15237039,0.00012692,2]
[355322391,1741065049685,-500.0,0.00012692,2]
[355322393,1741065049694,-500.0,0.00012692,2]
[355322395,1741065049704,-500.0,0.00012692,2]
[355322397,1741065049714,-504.04152743,0.00012692,2]
[355322399,1741065049724,-1480.67,0.00012692,2]
[355322401,1741065049734,-509.47454863,0.00012692,2]
[355322403,1741065049744,-500.0,0.00012692,2]
[355322405,1741065049754,-500.0,0.00012692,2]
[355322407,1741065049764,-683.99,0.00012692,2]
[355322409,1741065049774,-1302.48,0.00012692,2]
[355322411,1741065049785,-500.0,0.00012692,2]
[355322413,1741065049794,-640.41,0.00012692,2]
[355322415,1741065049804,-1119.77,0.00012692,2]
[355322417,1741065049813,-580.61,0.00012692,2]
[355322419,1741065049823,-500.0,0.00012692,2]
[355322421,1741065049832,-345.63450296,0.00012692,2]
[355322423,1741065049841,-3185.43,0.00012692,2]
[355322425,1741065049851,-500.0,0.00012692,2]
[355322427,1741065049861,-1272.57,0.00012692,2]
[355322429,1741065049870,-500.0,0.00012692,2]
[355322430,1741065049881,-4921.83,0.00012692,2]
[355322433,1741065049891,-500.0,0.00012692,2]
[355322435,1741065049901,-1868.9,0.00012692,2]
[355322436,1741065049911,-500.0,0.00012692,2]
[355322438,1741065049920,-500.0,0.00012692,2]
[355322440,1741065049930,-500.0,0.00012692,2]
[355322442,1741065049940,-500.0,0.00012692,2]
[355322445,1741065049950,-218.84098029,0.00012692,2]
[355322447,1741065049962,-500.0,0.00012692,2]
[355322448,1741065049971,-1038.15,0.00012692,2]
[355322450,1741065049981,-500.0,0.00012692,2]
[355322452,1741065049991,-500.0,0.00012692,2]
[355322454,1741065050000,-704.32,0.00012692,2]
[355322456,1741065050010,-457.67713971,0.00012692,2]
[355322458,1741065050023,-500.0,0.00012692,2]
[355322460,1741065050032,-500.0,0.00012692,2]
[355322462,1741065050044,-1968.66,0.00012692,2]
[355322464,1741065050053,-500.0,0.00012692,2]
[355322466,1741065050063,-500.0,0.00012692,2]
[355322468,1741065050072,-500.0,0.00012692,2]
[355322470,1741065050081,-500.0,0.00012692,2]
[355322472,1741065050091,-500.0,0.00012692,2]
[355322474,1741065050100,-500.0,0.00012692,2]
[355322476,1741065050109,-1427.46,0.00012692,2]
[355322478,1741065050119,-500.0,0.00012692,2]
[355322480,1741065050129,-500.0,0.00012692,2]
[355322482,1741065050138,-4607.37,0.00012692,2]
[355322484,1741065050148,-810.19,0.00012692,2]
[355322486,1741065050157,-500.0,0.00012692,2]
[355322488,1741065050167,-676.38,0.00012692,2]
[355322490,1741065050177,-500.0,0.00012692,2]
[355322492,1741065050186,-500.0,0.00012692,2]
[355322494,1741065050195,-500.0,0.00012692,2]
[355322496,1741065050205,-500.0,0.00012692,2]
[355322498,1741065050214,-551.46999348,0.00012692,2]
[355322500,1741065050223,-1503.38,0.00012692,2]
[355322502,1741065050232,-509.57198995,0.00012692,2]
[355322504,1741065050241,-500.0,0.00012692,2]
[355322506,1741065050251,-503.8118237,0.00012692,2]
[355322508,1741065050260,-1202.93,0.00012692,2]
[355322510,1741065050271,-504.34481092,0.00012692,2]
[355322512,1741065050280,-500.0,0.00012692,2]
[355322514,1741065050290,-2129.83,0.00012692,2]
[355322516,1741065050300,-500.0,0.00012692,2]
[355322518,1741065050310,-502.54395182,0.00012692,2]
[355322520,1741065050319,-500.0,0.00012692,2]
[355322522,1741065050329,-864.0,0.00012692,2]
[355322524,1741065050339,-711.71,0.00012692,2]
[355322526,1741065050348,-2787.22,0.00012692,2]
[355322528,1741065050357,-505.07127369,0.00012692,2]
[355322530,1741065050367,-682.08,0.00012692,2]
[355322532,1741065050377,-500.0,0.00012692,2]
[355322533,1741065050386,-504.12279587,0.00012692,2]
[355322535,1741065050395,-500.0,0.00012692,2]
[355322537,1741065050405,-500.0,0.00012692,2]
[355322539,1741065050414,-692.38,0.00012692,2]
[355322541,1741065050423,-496.21777962,0.00012692,2]
[355322543,1741065050432,-1244.97,0.00012692,2]
[355322545,1741065050442,-626.06,0.00012692,2]
[355322547,1741065050451,-1000.0,0.00012693,2]
[355322549,1741065050460,-1000.0,0.00012693,2]
[355322551,1741065050469,-1000.0,0.00012693,2]
[355322553,1741065050479,-1000.0,0.00012693,2]
[355322555,1741065050488,-1000.0,0.00012693,2]
[355322557,1741065050497,-1000.0,0.00012693,2]
[355322559,1741065050507,-1000.0,0.00012693,2]
[355322561,1741065050519,-1000.0,0.00012693,2]
[355322563,1741065050529,-1000.0,0.00012693,2]
[355322565,1741065050541,-1000.0,0.00012693,2]
[355322567,1741065050550,-1000.0,0.00012693,2]
[355322569,1741065050560,-1000.0,0.00012693,2]
[355322571,1741065050569,-1000.0,0.00012693,2]
[355322572,1741065050579,-1000.0,0.00012693,2]
[355322574,1741065050589,-1000.0,0.00012693,2]
[355322576,1741065050598,-1000.0,0.00012693,2]
[355322578,1741065050607,-1000.0,0.00012693,2]
[355322580,1741065050620,-1000.0,0.00012693,2]
[355322582,1741065050630,-1000.0,0.00012693,2]
[355322584,1741065050639,-1000.0,0.00012693,2]
[355322586,1741065050648,-1000.0,0.00012693,2]
[355322588,1741065050658,-1000.0,0.00012693,2]
[355322590,1741065050667,-1000.0,0.00012693,2]
[355322592,1741065050677,-1000.0,0.00012693,2]
[355322594,1741065050686,-265.0,0.00012693,2]
[355322596,1741065050696,-799.31,0.00012693,2]
[355322598,1741065050707,-500.0,0.00012693,2]
[355322600,1741065050716,-500.0,0.00012693,2]
[355322602,1741065050726,-500.0,0.00012693,2]
[355322604,1741065050735,-500.0,0.00012693,2]
[355322606,1741065050744,-589.18791031,0.00012693,2]
[355322608,1741065050754,-548.81,0.00012693,2]
[355322610,1741065050764,-500.0,0.00012693,2]
[355322612,1741065050774,-500.0,0.00012693,2]
[355322614,1741065050784,-516.02203249,0.00012693,2]
[355322616,1741065050794,-500.0,0.00012693,2]
[355322618,1741065050803,-503.97032845,0.00012693,2]
[355322620,1741065050813,-500.0,0.00012693,2]
[355322622,1741065050822,-500.0,0.00012693,2]
[355322624,1741065050831,-500.0,0.00012693,2]
[355322626,1741065050841,-500.0,0.00012693,2]
[355322628,1741065050850,-500.0,0.00012693,2]
[355322630,1741065050860,-500.0,0.00012693,2]
[355322632,1741065050869,-500.0,0.00012693,2]
[355322634,1741065050878,-500.0,0.00012693,2]
[355322635,1741065050888,-163.90802416,0.00012693,2]
[355322637,1741065050898,-513.45474978,0.00012693,2]
[355322639,1741065050907,-500.0,0.00012693,2]
[355322641,1741065050917,-1002.13,0.00012693,2]
[355322643,1741065050926,-500.0,0.00012693,2]
[355322645,1741065050935,-500.0,0.00012693,2]
[355322647,1741065050944,-500.0,0.00012693,2]
[355322649,1741065050953,-500.0,0.00012693,2]
[355322651,1741065050962,-500.0,0.00012693,2]
[355322653,1741065050971,-524.97384144,0.00012693,2]
[355322655,1741065050981,-500.0,0.00012693,2]
[355322657,1741065050990,-500.0,0.00012693,2]
[355322659,1741065050999,-500.0,0.00012693,2]
[355322661,1741065051008,-500.0,0.00012693,2]
[355322663,1741065051018,-500.0,0.00012693,2]
[355322665,1741065051028,-500.0,0.00012693,2]
[355322667,1741065051038,-505.58487714,0.00012693,2]
[355322669,1741065051047,-503.06667563,0.00012693,2]
[355322671,1741065051056,-500.0,0.00012693,2]
[355322673,1741065051066,-500.0,0.00012693,2]
[355322675,1741065051076,-500.0,0.00012693,2]
[355322677,1741065051085,-276.83645102,0.00012693,2]
[355322679,1741065051095,-947.29,0.00012693,2]
[355322681,1741065051104,-500.0,0.00012693,2]
[355322683,1741065051113,-500.0,0.00012693,2]
[355322684,1741065051123,-581.93,0.00012693,2]
[355322686,1741065051133,-500.0,0.00012693,2]
[355322688,1741065051142,-500.0,0.00012693,2]
[355322690,1741065051152,-500.0,0.00012693,2]
[355322692,1741065051161,-500.0,0.00012693,2]
[355322694,1741065051171,-500.0,0.00012693,2]
[355322696,1741065051181,-549.06092191,0.00012693,2]
[355322698,1741065051190,-500.0,0.00012693,2]
[355322700,1741065051200,-503.26003219,0.00012693,2]
[355322702,1741065051209,-505.37000707,0.00012693,2]
[355322704,1741065051219,-506.17619078,0.00012693,2]
[355322706,1741065051228,-678.39,0.00012693,2]
[355322708,1741065051238,-504.38757117,0.00012693,2]
[355322710,1741065051247,-804.42,0.00012693,2]
[355322712,1741065051257,-500.0,0.00012693,2]
[355322714,1741065051267,-500.0,0.00012693,2]
[355322716,1741065051277,-500.0,0.00012693,2]
[355322718,1741065051287,-500.0,0.00012693,2]
[355322720,1741065051296,-500.0,0.00012693,2]
[355322722,1741065051306,-501.78238218,0.00012693,2]
[355322724,1741065051316,-500.0,0.00012693,2]
[355322726,1741065051326,-500.0,0.00012693,2]
[355322728,1741065051336,-500.0,0.00012693,2]
[355322730,1741065051345,-500.0,0.00012693,2]
[355322732,1741065051355,-500.0,0.00012693,2]
[355322734,1741065051365,-500.57640047,0.00012693,2]
[355322736,1741065051375,-500.0,0.00012693,2]
[355322738,1741065051385,-536.24,0.00012693,2]
[355322740,1741065051394,-640.52,0.00012693,2]
[355322742,1741065051405,-500.0,0.00012693,2]
[355322744,1741065051414,-507.62228563,0.00012693,2]
[355322746,1741065051424,-505.35082433,0.00012693,2]
[355322748,1741065051433,-500.0,0.00012693,2]
[355322750,1741065051443,-500.0,0.00012693,2]
[355322752,1741065051452,-500.0,0.00012693,2]
[355322753,1741065051462,-583.83,0.00012693,2]
[355322755,1741065051471,-503.41930894,0.00012693,2]
[355322757,1741065051481,-500.0,0.00012693,2]
[355322759,1741065051491,-500.0,0.00012693,2]
[355322761,1741065051500,-500.0,0.00012693,2]
[355322763,1741065051509,-523.23277266,0.00012693,2]
[355322765,1741065051521,-500.0,0.00012693,2]
[355322767,1741065051536,-500.0,0.00012693,2]
[355322769,1741065051545,-500.0,0.00012693,2]
[355322771,1741065051554,-500.0,0.00012693,2]
[355322773,1741065051564,-502.29058485,0.00012693,2]
[355322775,1741065051575,-504.26349904,0.00012693,2]
[355322777,1741065051585,-665.66,0.00012693,2]
[355322779,1741065051595,-500.0,0.00012693,2]
[355322781,1741065051604,-522.10899132,0.00012693,2]
[355322783,1741065051618,-472.07128108,0.00012693,2]
[355322785,1741065051628,-923.05,0.00012693,2]
[355322787,1741065051638,-501.77108668,0.00012693,2]
[355322789,1741065051648,-500.0,0.00012693,2]
[355322791,1741065051658,-500.0,0.00012693,2]
[355322793,1741065051667,-685.34,0.00012693,2]
[355322795,1741065051676,-500.0,0.00012693,2]
[355322797,1741065051686,-608.31,0.00012693,2]
[355322799,1741065051695,-500.0,0.00012693,2]
[355322801,1741065051705,-970.02,0.00012693,2]
[355322803,1741065051715,-500.0,0.00012693,2]
[355322805,1741065051724,-508.0194795,0.00012693,2]
[355322807,1741065051734,-500.0,0.00012693,2]
[355322809,1741065051743,-500.0,0.00012693,2]
[355322811,1741065051752,-502.48085958,0.00012693,2]
[355322812,1741065051763,-500.0,0.00012693,2]
[355322814,1741065051773,-750.95,0.00012693,2]
[355322816,1741065051783,-500.0,0.00012693,2]
[355322818,1741065051792,-500.0,0.00012693,2]
[355322820,1741065051802,-503.38369813,0.00012693,2]
[355322822,1741065051811,-503.56459611,0.00012693,2]
[355322824,1741065051820,-504.73951948,0.00012693,2]
[355322826,1741065051829,-500.0,0.00012693,2]
[355322828,1741065051839,-515.30946201,0.00012693,2]
[355322847,1741065052021,-506.08041169,0.00012693,2]
[355322849,1741065052031,-500.0,0.00012693,2]
[355322851,1741065052040,-504.38745807,0.00012693,2]
[355322853,1741065052050,-500.0,0.00012693,2]
[355322855,1741065052059,-501.00639228,0.00012693,2]
[355322857,1741065052068,-1256.36,0.00012693,2]
[355322859,1741065052077,-500.0,0.00012693,2]
[355322861,1741065052087,-500.0,0.00012693,2]
[355322862,1741065052095,-503.62150741,0.00012693,2]
[355322864,1741065052105,-507.36489582,0.00012693,2]
[355322866,1741065052115,-501.09740227,0.00012693,2]
[355322868,1741065052124,-322.9399991,0.00012693,2]
[355322870,1741065052134,-500.0,0.00012693,2]
[355322872,1741065052143,-1039.8,0.00012693,2]
[355322874,1741065052153,-504.70665566,0.00012693,2]
[355322876,1741065052162,-216.27073675,0.00012693,2]
[355322878,1741065052171,-921.3,0.00012693,2]
[355322880,1741065052180,-731.98,0.00012693,2]
[355322882,1741065052189,-501.77342332,0.00012693,2]
[355322884,1741065052199,-500.0,0.00012693,2]
[355322886,1741065052207,-500.0,0.00012693,2]
[355322888,1741065052217,-503.51173705,0.00012693,2]
[355322890,1741065052226,-503.15618274,0.00012693,2]
[355322892,1741065052235,-502.01294036,0.00012693,2]
[355322894,1741065052244,-1103.3,0.00012693,2]
[355322896,1741065052253,-500.0,0.00012693,2]
[355322897,1741065052262,-594.76507119,0.00012693,2]
[355322899,1741065052272,-500.0,0.00012693,2]
[355322901,1741065052282,-799.33,0.00012693,2]
[355322903,1741065052292,-500.0,0.00012693,2]
[355322905,1741065052301,-500.0,0.00012693,2]